fUSD/lending_fUSD_20250319
["ID","MTS","AMOUNT","RATE_DAILY","PERIOD"]
[356387937,1742370643773,-1635.41090626,0.00030119,2]
[356387938,1742370643789,-778.18843887,0.00030119,2]
[356387939,1742370643803,-512.6900035,0.00030119,2]
[356387940,1742370643908,-7936.9214222,0.00030119,2]
[356387941,1742370643920,-39684.1444156,0.00030119,2]
[356387944,1742370646317,-368.0,0.000296,2]
[356387947,1742370646327,-476.47601793,0.00030119,2]
[356387949,1742370646339,-116683.43494343,0.00030119,2]
[356387950,1742370646349,-86517.7781925,0.00030119,3]
[356387951,1742370646358,-151.05,0.00030119,2]
[356387952,1742370646368,-103821.333831,0.0003012,3]
[356387953,1742370646377,-21004.4834446,0.0003012,3]
[356387954,1742370646388,-151.05,0.0003012,2]
[356387955,1742370646398,-883.81,0.00030123,2]
[356387956,1742370646409,-406.67033579,0.00030128,2]
[356387957,1742370646420,-230.25228064,0.00030128,2]
[356387958,1742370646430,-178.1942492,0.00030128,2]
[356387959,1742370646441,-951.39116389,0.00030128,2]
[356387960,1742370646451,-573.09019642,0.00030128,2]
[356387961,1742370646462,-3998.57837066,0.00030128,2]
[356387962,1742370646472,-226.45979447,0.00030128,2]
[356387963,1742370646482,-24007.87095856,0.00030128,2]
[356387964,1742370646492,-16763.2188,0.0003013,2]
[356387965,1742370646501,-4197.9548,0.0003013,2]
[356387966,1742370646511,-32440.3299375,0.0003013,2]
[356387967,1742370646527,-432.19494406,0.0003013,2]
[356387968,1742370646539,-658.63300375,0.0003013,2]
[356387969,1742370646550,-668.30843146,0.0003013,2]
[356387970,1742370646561,-343.53915486,0.0003013,2]
[356387971,1742370646573,-334.724112,0.0003013,2]
[356387976,1742371831723,-230.872,0.00014862,2]
[356387977,1742371831733,-273.878,0.00014862,2]
[356387978,1742371831960,-60.03822677,0.00014862,2]
[356387979,1742371831969,-350.0,0.00014863,2]
[356387980,1742371831979,-894.028,0.00014863,2]
[356387981,1742371831989,-191.18377323,0.000149,2]
[356387987,1742371837582,-25.14996232,0.000149,2]
[356387988,1742371837592,-350.0,0.00015593,2]
[356387989,1742371837601,-70.70463187,0.00016348,2]
[356387991,1742371837635,-79.29536813,0.00016348,2]
[356387992,1742371837645,-350.0,0.00016348,2]
[356387993,1742371837654,-8.41406522,0.00016362,2]
[356387995,1742371837665,-141.58593478,0.00016362,2]
[356387996,1742371837674,-150.0,0.00017862,2]
[356387997,1742371837684,-511.0,0.000214,2]
[356387998,1742371837694,-707.04,0.00026556,2]
[356387999,1742371837703,-511.5612349,0.000268,2]
[356388000,1742371837712,-476.41,0.00026849,2]
[356388001,1742371837721,-134.06280032,0.000279,4]
[356388002,1742371837733,-227.80890337,0.000279,4]
[356388003,1742371837743,-165.51823639,0.00027928,120]
[356388004,1742371837752,-604.05,0.00028252,2]
[356388005,1742371837761,-1000.0,0.00028322,2]
[356388006,1742371837771,-250.0,0.00028351,2]
[356388007,1742371837780,-152.62286024,0.00028353,2]
[356388008,1742371837791,-147.37713976,0.00028353,2]
[356388009,1742371837801,-6193.69156695,0.00028354,2]
[356388010,1742371837813,-376.0213201,0.00028354,2]
[356388011,1742371837824,-347.50867795,0.00028354,2]
[356388015,1742371840122,-10927.9053696,0.00028354,2]
[356388038,1742371842678,-439.6789258,0.00028354,2]
[356388046,1742371843706,-344.94220916,0.00028354,2]
[356388047,1742371845681,-5270.25193044,0.00028354,2]
[356388048,1742371845691,-150.0,0.00028363,2]
[356388049,1742371845701,-258.38181966,0.00028374,120]
[356388050,1742371845714,-1741.61818034,0.00028374,120]
[356388051,1742371845724,-152.13,0.00028433,2]
[356388052,1742371845733,-1000.0,0.00028433,2]
[356388053,1742371845743,-200.0,0.00028599,2]
[356388054,1742371845754,-150.0,0.00028683,5]
[356388055,1742371845764,-243.58694591,0.00028683,5]
[356388056,1742371845774,-160.24,0.00028809,2]
[356388057,1742371845784,-707.04,0.0002882,2]
[356388058,1742371845794,-159.91,0.00028859,30]
[356388059,1742371845805,-150.0,0.00028949,7]
[356388060,1742371845815,-500.0,0.00029004,2]
[356388061,1742371845824,-3207.53692696,0.00029928,2]
[356388062,1742371845836,-7321.95849467,0.00029928,2]
[356388063,1742371845848,-585.70187622,0.00029928,2]
[356388074,1742372920244,6995.1313562,0.0001,5]
[356388098,1742373031850,-250.0,0.00015,2]
[356388099,1742373031859,-175.76237558,0.00015,2]
[356388100,1742373031869,-350.0,0.000155,2]
[356388101,1742373031879,-350.0,0.000165,2]
[356388102,1742373031888,-350.0,0.000165,2]
[356388103,1742373031898,-151.0,0.00016856,2]
[356388104,1742373031908,-300.0,0.00017,2]
[356388105,1742373031917,-350.0,0.00019,2]
[356388106,1742373031927,-400.0,0.00021,2]
[356388107,1742373031936,-450.0,0.00023,2]
[356388108,1742373031946,-500.0,0.00025,2]
[356388109,1742373031955,-500.0,0.00025,2]
[356388110,1742373031964,-500.0,0.00025,2]
[356388111,1742373031974,-500.0,0.00025,2]
[356388112,1742373031983,-500.0,0.00025,2]
[356388113,1742373031992,-500.0,0.00025,2]
[356388114,1742373032002,-500.0,0.00025,2]
[356388115,1742373032011,-500.0,0.00025,2]
[356388116,1742373032021,-500.0,0.00025,2]
[356388117,1742373032030,-500.0,0.00025,2]
[356388118,1742373032039,-500.0,0.00025,2]
[356388119,1742373032049,-500.0,0.00025,2]
[356388120,1742373032058,-500.0,0.00025,2]
[356388121,1742373032067,-500.0,0.00025,2]
[356388122,1742373032076,-500.0,0.00025,2]
[356388123,1742373032086,-500.0,0.00025,2]
[356388124,1742373032095,-500.0,0.00025,2]
[356388125,1742373032104,-500.0,0.00025,2]
[356388126,1742373032113,-500.0,0.00025,2]
[356388127,1742373032123,-500.0,0.00025,2]
[356388128,1742373032132,-636.33,0.00026662,2]
[356388129,1742373032141,-278.62,0.00026849,2]
[356388130,1742373032150,-349.80931348,0.000269,4]
[356388131,1742373032160,-550.0,0.00027,2]
[356388132,1742373032169,-152.13,0.00028087,2]
[356388133,1742373032178,-2000.0,0.0002832,120]
[356388134,1742373032188,-159.91,0.00028647,30]
[356388135,1742373032198,-1000.0,0.00028685,2]
[356388136,1742373032207,-150.0,0.00028727,2]
[356388137,1742373032217,-23900.0,0.00028793,2]
[356388138,1742373032227,-200.0,0.00028877,2]
[356388139,1742373032236,-636.33,0.00028926,2]
[356388140,1742373032245,-160.24,0.00028957,2]
[356388141,1742373032254,-600.0,0.00029,2]
[356388142,1742373032263,-157.09,0.00029,2]
[356388143,1742373032272,-150.0,0.00029153,7]
[356388145,1742373032282,-168.83,0.00029162,2]
[356388146,1742373032291,-253.04,0.00029278,2]
[356388148,1742373032300,-500.0,0.00029314,120]
[356388150,1742373032309,-315.73791812,0.000298,30]
[356388151,1742373032318,-200.0,0.00029889,2]
[356388153,1742373032327,-326.90052068,0.00029899,2]
[356388155,1742373032337,-372.21287977,0.00029899,2]
[356388157,1742373032347,-21212.67729272,0.00029899,2]
[356388158,1742373032356,-27269.49774138,0.000299,10]
[356388159,1742373032365,-1536.56341,0.00029928,45]
[356388160,1742373032374,-16174.89292048,0.00029928,2]
[356388161,1742373032383,-900.0,0.0003,18]
[356388162,1742373032393,-891.4018,0.00030028,2]
[356388163,1742373032402,-2500.0,0.00030028,2]
[356388164,1742373032411,-1000.0,0.00030028,2]
[356388165,1742373032421,-171.74829001,0.000301,25]
[356388166,1742373032430,-1383.909,0.000301,25]
[356388167,1742373032439,-152.13,0.00030123,2]
[356388168,1742373032449,-7182.9358049,0.00030124,2]
[356388169,1742373032458,-18751.4421324,0.00030124,2]
[356388170,1742373032467,-151.06,0.00030128,2]
[356388171,1742373032477,-13691.04632026,0.00030128,2]
[356388172,1742373032486,-348.57457356,0.00030128,2]
[356388173,1742373032496,-382.06013094,0.00030128,2]
[356388174,1742373032508,-150.97319632,0.00030128,2]
[356388175,1742373032519,-634.26077594,0.00030128,2]
[356388176,1742373032528,-146080.895,0.00030128,2]
[356388177,1742373032539,-5000.0,0.00030128,3]
[356388178,1742373032549,-222.0,0.00030128,2]
[356388179,1742373032558,-167.32845951,0.0003013,2]
[356388180,1742373032567,-900.0,0.0003013,11]
[356388181,1742373032578,-263.10895788,0.0003013,11]
[356388182,1742373032588,-200.11114209,0.00030138,15]
[356388183,1742373032597,-203.5333187,0.00030145,2]
[356388184,1742373032607,-248.2210294,0.00030166,2]
[356388185,1742373032617,-17899.9441488,0.00030198,3]
[356388186,1742373032626,-248.2210294,0.00030208,2]
[356388187,1742373032635,-203.5333187,0.00030208,2]
[356388188,1742373032644,-153.214079,0.00030208,7]
[356388189,1742373032653,-151.0,0.00030208,7]
[356388190,1742373032663,-151.0,0.00030208,7]
[356388191,1742373032672,-5982.740592,0.00030208,2]
[356388192,1742373032681,-15618.2676627,0.00030208,2]
[356388193,1742373032690,-151.05,0.00030218,2]
[356388194,1742373032700,-151.05,0.00030218,2]
[356388195,1742373032710,-151.05,0.00030218,2]
[356388196,1742373032719,-151.05,0.00030218,2]
[356388197,1742373032728,-151.05,0.00030218,2]
[356388198,1742373032737,-151.05,0.00030218,2]
[356388199,1742373032747,-151.05,0.00030218,2]
[356388200,1742373032757,-151.05,0.00030218,2]
[356388201,1742373032766,-151.05,0.00030218,2]
[356388202,1742373032775,-151.05,0.00030218,2]
[356388203,1742373032785,-151.05,0.00030218,2]
[356388204,1742373032794,-151.05,0.00030218,2]
[356388205,1742373032804,-151.05,0.00030218,2]
[356388206,1742373032814,-151.05,0.00030218,2]
[356388207,1742373032823,-151.05,0.00030218,2]
[356388208,1742373032832,-151.05,0.00030218,2]
[356388209,1742373032842,-150.0,0.00030227,2]
[356388210,1742373032851,-666.0,0.00030228,5]
[356388211,1742373032860,-151.0,0.00030228,7]
[356388212,1742373032870,-380.488412,0.00030228,7]
[356388213,1742373032879,-380.488412,0.00030228,7]
[356388214,1742373032888,-220.961458,0.00030228,5]
[356388215,1742373032898,-155.527078,0.00030228,7]
[356388216,1742373032907,-195.841781,0.00030228,7]
[356388217,1742373032916,-151.0,0.00030228,7]
[356388218,1742373032926,-151.0,0.00030228,7]
[356388219,1742373032935,-151.0,0.00030228,7]
[356388220,1742373032944,-151.0,0.00030228,7]
[356388221,1742373032954,-298.479985,0.00030228,7]
[356388222,1742373032963,-154.627976,0.00030228,7]
[356388223,1742373032972,-151.0,0.00030228,7]
[356388224,1742373032982,-151.0,0.00030228,7]
[356388225,1742373032992,-200.570994,0.00030228,7]
[356388226,1742373033001,-158.578525,0.00030228,7]
[356388227,1742373033011,-203.376543,0.00030228,7]
[356388228,1742373033020,-381.622415,0.00030228,7]
[356388229,1742373033030,-381.622415,0.00030228,7]
[356388230,1742373033039,-155.259236,0.00030228,7]
[356388231,1742373033049,-151.0,0.00030228,7]
[356388232,1742373033059,-146724.79761228,0.00030228,30]
[356388343,1742373042840,-469.69130204,0.00030128,2]
[356388349,1742373044506,152.0,0.00015,90]
[356388351,1742373045962,-40303.74448046,0.00030128,2]
[356388352,1742373045972,-597.0,0.00030228,5]
[356388353,1742373045982,-151.0,0.00030228,7]
[356388354,1742373045992,-199949.76923349,0.00030228,30]
[356388394,1742373785331,4295.25,0.00018,60]
[356388402,1742374232220,-250.0,0.00015,2]
[356388403,1742374232230,-300.0,0.00017,2]
[356388404,1742374232239,-213.888,0.00018879,2]
[356388405,1742374232248,-350.0,0.00019,2]
[356388406,1742374232257,-400.0,0.00021,2]
[356388407,1742374232267,-450.0,0.00023,2]
[356388408,1742374232276,-500.0,0.00025,2]
[356388409,1742374232285,-500.0,0.00026849,2]
[356388410,1742374232294,-500.0,0.00026849,2]
[356388411,1742374232304,-500.0,0.00026849,2]
[356388412,1742374232313,-500.0,0.00026849,2]
[356388413,1742374232323,-500.0,0.00026849,2]
[356388414,1742374232332,-500.0,0.00026849,2]
[356388415,1742374232341,-28.57151555,0.00026849,2]
[356388416,1742374232353,-748.42848445,0.00026849,2]
[356388417,1742374232362,-157.09,0.00026849,2]
[356388418,1742374232373,-403.32,0.00026849,2]
[356388419,1742374232383,-90.96262934,0.00027,2]
[356388422,1742374232398,-459.03737066,0.00027,2]
[356388424,1742374232408,-152.13,0.00028309,2]
[356388451,1742374232664,-150.0,0.00028436,7]
[356388453,1742374232674,-591.49,0.0002855,120]
[356388455,1742374232684,-354.98954559,0.000289,5]
[356388457,1742374232693,-600.0,0.00029,2]
[356388459,1742374232702,-610.84079386,0.00029022,2]
[356388461,1742374232714,-389.15920614,0.00029022,2]
[356388462,1742374232724,-150.0,0.00029032,2]
[356388463,1742374232733,-200.0,0.00029048,2]
[356388464,1742374232742,-159.91,0.0002905,30]
[356388465,1742374232752,-460.3809932,0.00029106,2]
[356388468,1742374238005,-572.69,0.00027182,2]
[356388469,1742374238015,-785.92740743,0.00029106,2]
[356388655,1742374240261,-1052.58167642,0.00029106,2]
[356388657,1742374240273,-325.3544279,0.00029106,2]
[356388702,1742374243044,-1379.94554726,0.00029106,2]
[356388705,1742374243095,-12743.65719097,0.00029106,2]
[356388706,1742374243149,-2801.29996,0.00029106,2]
[356388707,1742374243161,-1596.299985,0.00029106,2]
[356388712,1742374246458,-2754.55281182,0.00029106,2]
[356388713,1742374246469,-161.89,0.0002912,2]
[356388714,1742374246480,-572.69,0.00029446,2]
[356388715,1742374246490,-168.83,0.00029498,2]
[356388716,1742374246500,-150.0,0.000295,120]
[356388717,1742374246510,-4571.36238817,0.00029615,6]
[356388718,1742374246522,-389.7599822,0.00029615,6]
[356388719,1742374246534,-3538.87762963,0.00029615,6]
[356388720,1742374246544,-8500.0,0.00029623,6]
[356388721,1742374246554,-1107.127,0.00029632,23]
[356388722,1742374246564,-8500.0,0.00029632,6]
[356388723,1742374246573,-8500.0,0.00029641,6]
[356388724,1742374246583,-5395.22524954,0.00029641,6]
[356388725,1742374246593,-250.0,0.00029653,2]
[356388726,1742374246603,-151.34843981,0.000299,2]
[356388727,1742374246613,-5199.09,0.00029929,2]
[356388728,1742374246622,-602.22,0.00029932,120]
[356388729,1742374246633,-224.69,0.00029934,120]
[356388730,1742374246642,-200.0,0.00029937,2]
[356388731,1742374246652,-350.0,0.00029967,2]
[356388732,1742374246661,-2276.45679599,0.0003,30]
[356388733,1742374246671,-267.15,0.0003,3]
[356388734,1742374246680,-2500.0,0.00030029,2]
[356388735,1742374246692,-100000.0,0.000301,7]
[356388736,1742374246702,-500.337681,0.000301,2]
[356388737,1742374246712,-222.0,0.00030128,2]
[356388738,1742374246721,-2013.73762464,0.00030129,2]
[356388739,1742374246731,-533.66969672,0.00030129,5]
[356388740,1742374246741,-323.89099096,0.00030129,2]
[356388741,1742374246750,-254.70675396,0.00030129,2]
[356388742,1742374246760,-685.099093,0.00030129,2]
[356388743,1742374246770,-5000.0,0.00030129,3]
[356388744,1742374246780,-500.0,0.00030137,120]
[356388745,1742374246789,-500.0,0.00030214,120]
[356388746,1742374246800,-150.86,0.00030219,2]
[356388747,1742374246809,-150.86,0.00030219,2]
[356388748,1742374246819,-150.86,0.00030219,2]
[356388749,1742374246829,-150.86,0.00030219,2]
[356388750,1742374246839,-150.86,0.00030219,2]
[356388751,1742374246849,-150.86,0.00030219,2]
[356388752,1742374246858,-150.86,0.00030219,2]
[356388753,1742374246873,-150.86,0.00030219,2]
[356388754,1742374246883,-150.86,0.00030219,2]
[356388755,1742374246893,-209.0,0.0003022,30]
[356388756,1742374246903,-150.0,0.00030227,2]
[356388757,1742374246913,-1280.46951,0.00030227,45]
[356388758,1742374246923,-200.0,0.00030228,2]
[356388759,1742374246933,-438.0,0.00030229,5]
[356388760,1742374246946,-186.10643988,0.00030229,2]
[356388761,1742374246956,-185.78347695,0.00030229,2]
[356388762,1742374246968,-1484.56038217,0.00030229,2]
[356388808,1742375432206,-453.46143577,0.0002,2]
[356388809,1742375432361,-46.53856423,0.0002,2]
[356388810,1742375432371,-885.702,0.0002479,8]
[356388811,1742375432381,-373.89184597,0.00026849,2]
[356388812,1742375432412,-78.68815403,0.00026849,2]
[356388813,1742375432422,-264.68,0.00026849,2]
[356388814,1742375432431,-152.13,0.0002881,2]
[356388815,1742375432441,-168.83,0.00028932,2]
[356388816,1742375432451,-150.0,0.00028962,2]
[356388817,1742375432460,-49.7773407,0.00028985,2]
[356388818,1742375432477,-150.2226593,0.00028985,2]
[356388819,1742375432486,-150.0,0.00028994,7]
[356388820,1742375432497,-23900.0,0.00029009,2]
[356388821,1742375432506,-1453.02,0.00029014,2]
[356388822,1742375432517,-2751.0,0.00029027,2]
[356388823,1742375432526,-1000.0,0.00029151,2]
[356388824,1742375432536,-159.91,0.00029232,30]
[356388825,1742375432545,-154.88,0.00029436,2]
[356388826,1742375432555,-154.88,0.000296,2]
[356388827,1742375432564,-586.38068079,0.00029641,3]
[356388828,1742375432574,-250.0,0.00029729,2]
[356388829,1742375432584,-154.88,0.00029763,2]
[356388830,1742375432594,-696.63868705,0.000299,2]
[356388831,1742375432603,-343.15656065,0.000299,5]
[356388832,1742375432613,-154.88,0.00029927,2]
[356388833,1742375432622,-4234.96,0.00029932,2]
[356388834,1742375432632,-200.0,0.00029932,2]
[356388835,1742375432642,-200.0,0.00029987,2]
[356388836,1742375432652,-248.0,0.0003,120]
[356388837,1742375432661,-500.0,0.0003,2]
[356388838,1742375432671,-193.32364607,0.0003,2]
[356388839,1742375432680,-434.12775321,0.00030004,2]
[356388841,1742375432690,-154.88,0.0003009,2]
[356388843,1742375432699,-888.94920078,0.00030129,2]
[356388845,1742375432709,-221.2345,0.00030129,2]
[356388847,1742375432719,-2500.0,0.00030132,2]
[356388849,1742375432728,-5000.0,0.00030132,3]
[356388851,1742375432738,-355.7797978,0.00030132,5]
[356388853,1742375432747,-9127.36421352,0.00030132,2]
[356388855,1742375432757,-1879.48844958,0.00030132,2]
[356388856,1742375432766,-312.18113675,0.00030132,2]
[356388857,1742375432775,-27182.29052166,0.00030132,2]
[356388858,1742375432784,-150.89,0.00030222,2]
[356388859,1742375432794,-150.89,0.00030222,2]
[356388860,1742375432803,-150.89,0.00030222,2]
[356388861,1742375432812,-150.89,0.00030222,2]
[356388862,1742375432822,-150.89,0.00030222,2]
[356388863,1742375432831,-150.89,0.00030222,2]
[356388864,1742375432841,-150.89,0.00030222,2]
[356388865,1742375432850,-200.0,0.00030229,2]
[356388866,1742375432860,-1067.05793,0.00030229,45]
[356388867,1742375432869,-150.0,0.00030231,2]
[356388868,1742375432878,-388.0,0.00030232,5]
[356388869,1742375432887,-186.10643988,0.00030232,2]
[356388870,1742375432897,-11077.9233367,0.00030232,2]
[356388871,1742375432906,-260102.39299929,0.00030232,30]
[356388872,1742375432918,-799.99997,0.00030232,30]
[356388873,1742375432929,-1671.13242083,0.00030232,30]
[356388874,1742375432941,-3120.71794794,0.00030232,30]
[356388875,1742375432952,-1214.77358413,0.00030232,30]
[356388879,1742375438091,-1460.41362067,0.00030232,30]
[356388880,1742375438197,-131603.26353587,0.00030232,30]
[356388881,1742375438209,-3108.11983015,0.00030232,30]
[356388958,1742375440441,-515.42,0.00027985,2]
[356388959,1742375440451,-43879.91204229,0.00030232,30]
[356388960,1742375440463,-1027.8865036,0.00030232,30]
[356388966,1742375443249,-352.0,0.00030232,5]
[356388967,1742375443258,-3453.08166089,0.00030232,30]
[356388999,1742376632276,-250.0,0.00015,2]
[356389001,1742376632286,-150.0,0.000165,2]
[356389003,1742376632296,-150.0,0.000165,2]
[356389005,1742376632305,-150.0,0.000165,2]
[356389006,1742376632315,-300.0,0.00017,2]
[356389007,1742376632324,-350.0,0.00019,2]
[356389008,1742376632333,-300.0,0.00020901,2]
[356389009,1742376632343,-405.0,0.00020901,2]
[356389010,1742376632352,-157.11,0.00020902,2]
[356389011,1742376632361,-787.0,0.00020902,2]
[356389012,1742376632370,-1268.0,0.00020902,2]
[356389013,1742376632379,-190.652,0.00020902,2]
[356389014,1742376632389,-2586.4,0.00020902,2]
[356389015,1742376632398,-541.0,0.00020902,2]
[356389016,1742376632408,-907.0,0.00020902,2]
[356389017,1742376632417,-151.0,0.00020902,2]
[356389018,1742376632426,-768.744,0.00020902,2]
[356389019,1742376632436,-705.0,0.00020902,2]
[356389020,1742376632446,-400.0,0.00021,2]
[356389021,1742376632457,-386.156579,0.00022624,2]
[356389022,1742376632466,-420.0,0.00022738,2]
[356389023,1742376632476,-644.0,0.00023902,2]
[356389024,1742376632486,-587.0,0.00024737,2]
[356389025,1742376632495,-531.9,0.00026263,2]
[356389026,1742376632505,-383.15,0.00026849,2]
[356389027,1742376632515,-823.0,0.00026911,2]
[356389028,1742376632524,-152.13,0.00027835,2]
[356389029,1742376632533,-150.0,0.00027882,7]
[356389030,1742376632543,-168.83,0.00028019,2]
[356389031,1742376632552,-500.0,0.00028057,2]
[356389032,1742376632561,-303.87,0.0002808,2]
[356389033,1742376632571,-1805.19,0.00028091,2]
[356389034,1742376632582,-297.35,0.00028109,2]
[356389035,1742376632592,-150.0,0.00028172,2]
[356389036,1742376632601,-9926.85,0.00028292,2]
[356389037,1742376632611,-531.9,0.00028527,2]
[356389038,1742376632627,-2751.0,0.00028646,2]
[356389039,1742376632637,-23900.0,0.00028646,2]
[356389040,1742376632647,-200.0,0.00028675,2]
[356389041,1742376632657,-1000.0,0.00028683,2]
[356389043,1742376632666,-159.91,0.00028763,30]
[356389045,1742376632676,-247.91,0.00028861,2]
[356389046,1742376632686,-207.72,0.00029099,2]
[356389047,1742376632696,-161.89,0.00029167,2]
[356389048,1742376632705,-292.03,0.00029232,7]
[356389049,1742376632715,-1152.0,0.00029276,2]
[356389050,1742376632724,-350.0,0.00029307,2]
[356389051,1742376632734,-250.0,0.00029384,2]
[356389052,1742376632744,-224.81214767,0.00029656,2]
[356389053,1742376632753,-8500.0,0.00029747,6]
[356389054,1742376632764,-8500.0,0.00029756,6]
[356389056,1742376632773,-708.562,0.00029756,24]
[356389058,1742376632783,-8500.0,0.00029764,6]
[356389059,1742376632793,-8500.0,0.00029773,6]
[356389061,1742376632803,-8500.0,0.00029782,6]
[356389063,1742376632813,-315.04112447,0.00029782,6]
[356389065,1742376632822,-350.0,0.00029884,2]
[356389066,1742376632832,-3894.7,0.00029932,2]
[356389068,1742376632842,-172.26,0.00029956,2]
[356389069,1742376632851,-2137.847,0.0003,30]
[356389071,1742376632861,-434.12775321,0.00030015,2]
[356389072,1742376632870,-1366.2856,0.00030132,2]
[356389074,1742376632879,-761.95645782,0.00030132,2]
[356389076,1742376632888,-5000.0,0.00030133,3]
[356389077,1742376632897,-1754.18921972,0.00030133,2]
[356389079,1742376632907,-18121.52701444,0.00030133,2]
[356389081,1742376632916,-456.73272868,0.00030133,2]
[356389082,1742376632925,-169.80450264,0.00030133,2]
[356389084,1742376632935,-312.18113671,0.00030133,2]
[356389086,1742376632944,-237.18653188,0.00030133,5]
[356389087,1742376632953,-368.0,0.000302,2]
[356389089,1742376632962,-751.0,0.000302,2]
[356389091,1742376632972,-233.0,0.000302,2]
[356389092,1742376632981,-150.89,0.00030223,2]
[356389094,1742376632991,-150.89,0.00030223,2]
[356389096,1742376633000,-150.89,0.00030223,2]
[356389097,1742376633011,-150.89,0.00030223,2]
[356389099,1742376633020,-3428.0425353,0.00030228,2]
[356389101,1742376633030,-9902.9416523,0.00030228,2]
[356389102,1742376633039,-356.9810641,0.00030228,2]
[356389104,1742376633050,-814.13327799,0.00030228,2]
[356389106,1742376633060,-150.0,0.00030231,2]
[356389107,1742376633070,-91.85618241,0.00030232,2]
[356389109,1742376633083,-108.14381759,0.00030232,2]
[356389111,1742376633093,-206.89730688,0.00030232,45]
[356389193,1742376638280,-386.15657917,0.00030232,45]
[356389194,1742376638447,-296.16105395,0.00030232,45]
[356389195,1742376638456,-315.0,0.00030232,5]
[356389196,1742376638466,-297.77030382,0.00030232,2]
[356389197,1742376638476,-5538.96166834,0.00030232,2]
[356389198,1742376638488,-5182.26637479,0.00030233,30]
[356389199,1742376638502,-435.68171762,0.00030233,30]
[356389200,1742376638514,-62433.5439384,0.00030233,30]
[356389201,1742376638525,-1077.13016985,0.00030233,30]
[356389206,1742376640698,-13554.62348864,0.00030233,30]
[356389355,1742377831690,-571.0,0.00022925,2]
[356389356,1742377831703,-150.0,0.00025218,2]
[356389357,1742377831717,-429.95,0.00026849,2]
[356389358,1742377831731,-478.71,0.00026986,2]
[356389359,1742377831744,-504.0,0.00028712,2]
[356389360,1742377831758,-171.33,0.0002873,2]
[356389361,1742377831771,-224.81214768,0.00028745,2]
[356389362,1742377831784,-200.0,0.00028748,2]
[356389363,1742377831798,-171.33,0.00028805,2]
[356389364,1742377831810,-151.02,0.00028845,2]
[356389365,1742377831823,-10317.35,0.00028845,2]
[356389366,1742377831837,-171.33,0.00028881,2]
[356389367,1742377831849,-150.0,0.00028904,7]
[356389368,1742377831862,-171.33,0.00028956,2]
[356389369,1742377831874,-179.74,0.00029025,120]
[356389370,1742377831887,-2111.52331932,0.00029025,2]
[356389371,1742377831904,-1821.36668068,0.00029025,2]
[356389372,1742377831917,-171.33,0.00029032,2]
[356389373,1742377831932,-168.83,0.00029085,2]
[356389374,1742377831945,-157.09,0.00029088,2]
[356389375,1742377831965,-152.13,0.00029088,2]
[356389376,1742377831981,-171.33,0.00029108,2]
[356389377,1742377831993,-5557.92331932,0.00029133,2]
[356389378,1742377832009,-508.47198714,0.00029133,2]
[356389385,1742377837566,-17833.60469354,0.00029133,2]
[356389386,1742377837577,-150.0,0.00029178,2]
[356389387,1742377837587,-171.33,0.00029183,2]
[356389388,1742377837597,-200.0,0.00029201,2]
[356389389,1742377837607,-997.05,0.00029229,2]
[356389390,1742377837617,-268.3,0.00029232,7]
[356389391,1742377837627,-342.49463898,0.0002925,2]
[356389392,1742377837644,-136.21536102,0.0002925,2]